fUST/lending_fUST_20241123
["ID","MTS","AMOUNT","RATE_DAILY","PERIOD"]
[343108243,1732363788718,-500.0,0.00019726,2]
[343108244,1732363788745,-1494.84,0.00019726,2]
[343108245,1732363788775,-500.0,0.00019726,2]
[343108246,1732363788803,-509.54349319,0.00019726,2]
[343108247,1732363788831,-500.0,0.00019726,2]
[343108248,1732363788858,-440.63141146,0.00019726,2]
[343108249,1732363788885,-500.0,0.00019726,2]
[343108250,1732363788913,-545.68,0.00019726,2]
[343108251,1732363788941,-560.74674677,0.00019726,2]
[343108252,1732363788970,-500.0,0.00019726,2]
[343108253,1732363789000,-500.0,0.00019726,2]
[343108254,1732363789030,-500.0,0.00019726,2]
[343108255,1732363789057,-500.0,0.00019726,2]
[343108256,1732363789087,-500.0,0.00019726,2]
[343108257,1732363789119,-500.0,0.00019726,2]
[343108258,1732363789148,-534.57111995,0.00019726,2]
[343108259,1732363789177,-500.0,0.00019726,2]
[343108260,1732363789206,-500.0,0.00019726,2]
[343108261,1732363789234,-603.46266754,0.00019726,2]
[343108262,1732363789262,-500.0,0.00019726,2]
[343108263,1732363789295,-500.0,0.00019726,2]
[343108264,1732363789324,-558.30959572,0.00019726,2]
[343108265,1732363789439,-660.32,0.00019726,2]
[343108266,1732363789466,-500.0,0.00019726,2]
[343108267,1732363789494,-500.0,0.00019726,2]
[343108268,1732363789526,-500.0,0.00019726,2]
[343108269,1732363789560,-573.87,0.00019726,2]
[343108270,1732363789589,-500.0,0.00019726,2]
[343108271,1732363789618,-500.0,0.00019726,2]
[343108272,1732363789647,-500.0,0.00019726,2]
[343108273,1732363789675,-500.0,0.00019726,2]
[343108274,1732363789703,-500.0,0.00019726,2]
[343108275,1732363789731,-500.0,0.00019726,2]
[343108276,1732363789760,-500.0,0.00019726,2]
[343108277,1732363789792,-500.0,0.00019726,2]
[343108278,1732363789821,-2025.79,0.00019726,2]
[343108279,1732363789849,-500.0,0.00019726,2]
[343108280,1732363789876,-526.89,0.00019726,2]
[343108281,1732363789904,-500.0,0.00019726,2]
[343108282,1732363789931,-500.0,0.00019726,2]
[343108283,1732363789957,-500.0,0.00019726,2]
[343108284,1732363789985,-500.0,0.00019726,2]
[343108285,1732363790020,-500.0,0.00019726,2]
[343108286,1732363790048,-500.0,0.00019726,2]
[343108287,1732363790076,-500.0,0.00019726,2]
[343108288,1732363790104,-411.0143103,0.00019726,2]
[343108289,1732363790129,-500.0,0.00019726,2]
[343108290,1732363790158,-500.0,0.00019726,2]
[343108291,1732363790187,-648.17,0.00019726,2]
[343108292,1732363790214,-500.0,0.00019726,2]
[343108293,1732363790241,-500.0,0.00019726,2]
[343108294,1732363790269,-500.0,0.00019726,2]
[343108295,1732363790296,-2792.79,0.00019726,2]
[343108296,1732363790323,-500.0,0.00019726,2]
[343108297,1732363790348,-500.0,0.00019726,2]
[343108298,1732363790375,-1186.81,0.00019726,2]
[343108299,1732363790401,-500.0,0.00019726,2]
[343108300,1732363790427,-665.0,0.00019726,2]
[343108301,1732363790454,-500.0,0.00019726,2]
[343108302,1732363790481,-500.0,0.00019726,2]
[343108303,1732363790507,-500.0,0.00019726,2]
[343108304,1732363790536,-500.0,0.00019726,2]
[343108305,1732363790562,-500.0,0.00019726,2]
[343108306,1732363790588,-925.73,0.00019726,2]
[343108307,1732363790615,-512.28310525,0.00019726,2]
[343108308,1732363790642,-500.0,0.00019726,2]
[343108309,1732363790669,-500.0,0.00019726,2]
[343108310,1732363790697,-500.0,0.00019726,2]
[343108311,1732363790724,-1500.44,0.00019726,2]
[343108312,1732363790751,-500.0,0.00019726,2]
[343108313,1732363790778,-509.61771935,0.00019726,2]
[343108314,1732363790804,-500.0,0.00019726,2]
[343108315,1732363790830,-509.96480558,0.00019726,2]
[343108316,1732363790859,-384.7232423,0.00019726,2]
[343108317,1732363790885,-500.0,0.00019726,2]
[343108318,1732363790911,-500.0,0.00019726,2]
[343108319,1732363790939,-500.0,0.00019726,2]
[343108320,1732363790965,-1213.35,0.00019726,2]
[343108321,1732363790996,-751.64,0.00019726,2]
[343108322,1732363791026,-500.0,0.00019726,2]
[343108323,1732363791056,-507.71890707,0.00019726,2]
[343108324,1732363791088,-509.5428618,0.00019726,2]
[343108325,1732363791116,-1969.72,0.00019726,2]
[343108326,1732363791142,-500.0,0.00019726,2]
[343108327,1732363791168,-664.91,0.00019726,2]
[343108328,1732363791194,-500.0,0.00019726,2]
[343108329,1732363791220,-500.0,0.00019726,2]
[343108330,1732363791341,-500.0,0.00019726,2]
[343108331,1732363791367,-500.0,0.00019726,2]
[343108332,1732363791393,-549.1440511,0.00019726,2]
[343108333,1732363791419,-500.0,0.00019726,2]
[343108334,1732363791443,-500.0,0.00019726,2]
[343108335,1732363791468,-500.0,0.00019726,2]
[343108336,1732363791493,-617.29845453,0.00019726,2]
[343108337,1732363791520,-500.0,0.00019726,2]
[343108338,1732363791545,-500.0,0.00019726,2]
[343108339,1732363791571,-500.0,0.00019726,2]
[343108340,1732363791598,-618.63331011,0.00019726,2]
[343108341,1732363791625,-500.0,0.00019726,2]
[343108342,1732363791652,-500.0,0.00019726,2]
[343108343,1732363791678,-500.0,0.00019726,2]
[343108344,1732363791705,-500.0,0.00019726,2]
[343108345,1732363791732,-500.0,0.00019726,2]
[343108346,1732363791757,-477.46360813,0.00019726,2]
[343108347,1732363791785,-549.7707136,0.00019726,2]
[343108348,1732363791811,-500.0,0.00019726,2]
[343108349,1732363791837,-500.0,0.00019726,2]
[343108350,1732363791864,-500.0,0.00019726,2]
[343108351,1732363791890,-509.94735434,0.00019726,2]
[343108352,1732363791916,-500.0,0.00019726,2]
[343108353,1732363791943,-500.0,0.00019726,2]
[343108354,1732363791970,-500.0,0.00019726,2]
[343108355,1732363791997,-2048.21,0.00019726,2]
[343108356,1732363792030,-788.01,0.00019726,2]
[343108357,1732363792059,-500.0,0.00019726,2]
[343108358,1732363792089,-586.58414947,0.00019726,2]
[343108359,1732363792115,-1124.43,0.00019726,2]
[343108360,1732363792141,-629.92136021,0.00019726,2]
[343108361,1732363792169,-217.53040271,0.00019726,2]
[343108362,1732363792195,-500.0,0.00019726,2]
[343108363,1732363792222,-500.0,0.00019726,2]
[343108364,1732363792248,-306.58,0.00019726,2]
[343108365,1732363792276,-500.0,0.00019726,2]
[343108366,1732363792302,-500.0,0.00019726,2]
[343108367,1732363792327,-1339.0,0.00019726,2]
[343108368,1732363792354,-500.0,0.00019726,2]
[343108369,1732363792378,-500.0,0.00019726,2]
[343108370,1732363792403,-500.0,0.00019726,2]
[343108371,1732363792427,-3677.49,0.00019726,2]
[343108372,1732363792452,-500.0,0.00019726,2]
[343108373,1732363792478,-500.0,0.00019726,2]
[343108374,1732363792505,-500.0,0.00019726,2]
[343108375,1732363792532,-500.0,0.00019726,2]
[343108376,1732363792557,-500.0,0.00019726,2]
[343108377,1732363792582,-953.29,0.00019726,2]
[343108378,1732363792607,-500.0,0.00019726,2]
[343108379,1732363792631,-2221.36,0.00019726,2]
[343108380,1732363792656,-500.0,0.00019726,2]
[343108381,1732363792682,-500.0,0.00019726,2]
[343108382,1732363792708,-2948.33,0.00019726,2]
[343108383,1732363792733,-1061.6,0.00019726,2]
[343108384,1732363792758,-487.43029564,0.00019726,2]
[343108385,1732363792790,-266.29713441,0.00019726,2]
[343108386,1732363792816,-270.29280381,0.00019726,2]
[343108387,1732363792840,-500.0,0.00019726,2]
[343108388,1732363792865,-312.14681894,0.00019726,2]
[343108389,1732363792890,-500.0,0.00019726,2]
[343108390,1732363792917,-500.0,0.00019726,2]
[343108391,1732363792943,-506.08511208,0.00019726,2]
[343108392,1732363792970,-587.96,0.00019726,2]
[343108393,1732363792999,-500.0,0.00019726,2]
[343108394,1732363793031,-500.0,0.00019726,2]
[343108395,1732363793059,-500.0,0.00019726,2]
[343108396,1732363793087,-500.0,0.00019726,2]
[343108397,1732363793114,-500.0,0.00019726,2]
[343108398,1732363793140,-500.0,0.00019726,2]
[343108399,1732363793166,-500.0,0.00019726,2]
[343108400,1732363793193,-500.0,0.00019726,2]
[343108401,1732363793219,-588.58,0.00019726,2]
[343108402,1732363793244,-500.0,0.00019726,2]
[343108403,1732363793271,-500.0,0.00019726,2]
[343108404,1732363793296,-500.0,0.00019726,2]
[343108405,1732363793322,-500.0,0.00019726,2]
[343108406,1732363793348,-500.0,0.00019726,2]
[343108407,1732363793374,-500.0,0.00019726,2]
[343108408,1732363793401,-500.0,0.00019726,2]
[343108409,1732363793427,-749.93,0.00019726,2]
[343108410,1732363793453,-500.0,0.00019726,2]
[343108411,1732363793478,-500.0,0.00019726,2]
[343108412,1732363793503,-500.0,0.00019726,2]
[343108413,1732363793531,-500.0,0.00019726,2]
[343108414,1732363793556,-500.0,0.00019726,2]
[343108415,1732363793582,-2567.47,0.00019726,2]
[343108416,1732363793608,-500.0,0.00019726,2]
[343108417,1732363793635,-500.0,0.00019726,2]
[343108418,1732363793665,-500.0,0.00019726,2]
[343108419,1732363793693,-511.9518947,0.00019726,2]
[343108420,1732363793722,-500.0,0.00019726,2]
[343108421,1732363793750,-500.0,0.00019726,2]
[343108422,1732363793885,-500.0,0.00019726,2]
[343108423,1732363793914,-500.0,0.00019726,2]
[343108424,1732363793940,-790.77,0.00019726,2]
[343108425,1732363793966,-1469.49,0.00019726,2]
[343108426,1732363793994,-742.26,0.00019726,2]
[343108427,1732363794020,-916.83,0.00019726,2]
[343108428,1732363794048,-500.0,0.00019726,2]
[343108429,1732363794077,-389.26028735,0.00019726,2]
[343108430,1732363794105,-1008.43,0.00019726,2]
[343108431,1732363794133,-500.0,0.00019726,2]
[343108432,1732363794160,-1754.95,0.00019726,2]
[343108433,1732363794189,-500.0,0.00019726,2]
[343108434,1732363794215,-500.0,0.00019726,2]
[343108435,1732363794241,-1328.13,0.00019726,2]
[343108436,1732363794268,-500.0,0.00019726,2]
[343108437,1732363794294,-161.29106221,0.00019726,2]
[343108438,1732363794321,-196.91,0.00019726,2]
[343108439,1732363794347,-530.19099072,0.00019726,2]
[343108440,1732363794374,-500.0,0.00019726,2]
[343108441,1732363794398,-500.0,0.00019726,2]
[343108442,1732363794426,-500.0,0.00019726,2]
[343108443,1732363794451,-500.0,0.00019726,2]
[343108444,1732363794477,-500.0,0.00019726,2]
[343108445,1732363794504,-500.0,0.00019726,2]
[343108446,1732363794532,-2115.15,0.00019726,2]
[343108447,1732363794557,-500.0,0.00019726,2]
[343108448,1732363794579,-1264.18,0.00019726,2]
[343108449,1732363794605,-500.0,0.00019726,2]
[343108451,1732363794632,-1063.75,0.00019726,2]
[343108452,1732363794658,-500.0,0.00019726,2]
[343108453,1732363794685,-3000.43,0.00019726,2]
[343108454,1732363794710,-970.07,0.00019726,2]
[343108455,1732363794734,-500.0,0.00019726,2]
[343108456,1732363794760,-500.0,0.00019726,2]
[343108457,1732363794787,-500.0,0.00019726,2]
[343108458,1732363794812,-500.0,0.00019726,2]
[343108459,1732363794837,-1860.18,0.00019726,2]
[343108460,1732363794862,-1112.89,0.00019726,2]
[343108461,1732363794887,-500.0,0.00019726,2]
[343108462,1732363794912,-500.0,0.00019726,2]
[343108463,1732363794939,-362.31923589,0.00019726,2]
[343108464,1732363794965,-500.0,0.00019726,2]
[343108465,1732363794991,-415.11274241,0.00019726,2]
[343108466,1732363795019,-1936.77,0.00019726,2]
[343108467,1732363795045,-500.0,0.00019726,2]
[343108468,1732363795071,-500.0,0.00019726,2]
[343108469,1732363795101,-500.0,0.00019726,2]
[343108470,1732363795128,-702.49,0.00019726,2]
[343108471,1732363795155,-500.0,0.00019726,2]
[343108472,1732363795182,-500.0,0.00019726,2]
[343108473,1732363795209,-912.88,0.00019726,2]
[343108474,1732363795236,-500.0,0.00019726,2]
[343108475,1732363795261,-509.25037458,0.00019726,2]
[343108476,1732363795290,-628.42,0.00019726,2]
[343108477,1732363795316,-500.0,0.00019726,2]
[343108478,1732363795341,-1037.38,0.00019726,2]
[343108479,1732363795368,-1495.76,0.00019726,2]
[343108480,1732363795393,-500.0,0.00019726,2]
[343108481,1732363795418,-2803.62,0.00019726,2]
[343108482,1732363795443,-546.3667493,0.00019726,2]
[343108483,1732363795469,-500.0,0.00019726,2]
[343108484,1732363795498,-1765.88,0.00019726,2]
[343108485,1732363795525,-2345.51,0.00019726,2]
[343108486,1732363795552,-500.0,0.00019726,2]
[343108487,1732363795579,-1337.23,0.00019726,2]
[343108488,1732363795605,-500.0,0.00019726,2]
[343108489,1732363795631,-500.0,0.00019726,2]
[343108490,1732363795658,-3077.62,0.00019726,2]
[343108491,1732363795686,-1166.03,0.00019726,2]
[343108492,1732363795715,-500.0,0.00019726,2]
[343108493,1732363795744,-500.0,0.00019726,2]
[343108494,1732363795772,-500.0,0.00019726,2]
[343108495,1732363795800,-974.99,0.00019726,2]
[343108496,1732363795827,-861.9,0.00019726,2]
[343108497,1732363795853,-1189.97,0.00019726,2]
[343108498,1732363795880,-577.2,0.00019726,2]
[343108499,1732363795910,-1458.21,0.00019726,2]
[343108500,1732363795937,-500.0,0.00019726,2]
[343108501,1732363795966,-500.0,0.00019726,2]
[343108502,1732363795994,-1532.1,0.00019726,2]
[343108503,1732363796033,-500.0,0.00019726,2]
[343108504,1732363796062,-500.0,0.00019726,2]
[343108505,1732363796090,-1013.64,0.00019726,2]
[343108506,1732363796117,-1862.24,0.00019726,2]
[343108507,1732363796145,-500.0,0.00019726,2]
[343108508,1732363796173,-500.0,0.00019726,2]
[343108509,1732363796206,-9026.67,0.00019726,2]
[343108510,1732363796233,-500.0,0.00019726,2]
[343108512,1732363796260,-2662.96,0.00019726,2]
[343108514,1732363796288,-500.0,0.00019726,2]
[343108516,1732363796314,-500.0,0.00019726,2]
[343108517,1732363796343,-1913.0,0.00019726,2]
[343108518,1732363796373,-500.0,0.00019726,2]
[343108520,1732363796400,-1506.09,0.00019726,2]
[343108522,1732363796428,-500.0,0.00019726,2]
[343108523,1732363796455,-500.0,0.00019726,2]
[343108524,1732363796481,-1121.28,0.00019726,2]
[343108525,1732363796506,-623.68,0.00019726,2]
[343108526,1732363796534,-500.0,0.00019726,2]
[343108527,1732363796562,-1909.7,0.00019726,2]
[343108528,1732363796590,-500.0,0.00019726,2]
[343108529,1732363796616,-656.98,0.00019726,2]
[343108530,1732363796643,-500.0,0.00019726,2]
[343108531,1732363796671,-500.0,0.00019726,2]
[343108532,1732363796697,-500.0,0.00019726,2]
[343108533,1732363796727,-500.0,0.00019726,2]
[343108534,1732363796754,-545.75737711,0.00019726,2]
[343108535,1732363796783,-1555.38,0.00019726,2]
[343108536,1732363796810,-565.37,0.00019726,2]
[343108537,1732363796838,-603.55,0.00019726,2]
[343108538,1732363796866,-500.0,0.00019726,2]
[343108539,1732363796893,-798.23,0.00019726,2]
[343108540,1732363796921,-500.0,0.00019726,2]
[343108541,1732363796949,-500.0,0.00019726,2]
[343108542,1732363796975,-500.0,0.00019726,2]
[343108543,1732363797005,-500.0,0.00019726,2]
[343108544,1732363797035,-500.0,0.00019726,2]
[343108545,1732363797066,-839.02,0.00019726,2]
[343108546,1732363797097,-528.51,0.00019726,2]
[343108547,1732363797128,-510.16565814,0.00019726,2]
[343108548,1732363797156,-500.0,0.00019726,2]
[343108549,1732363797189,-500.0,0.00019726,2]
[343108550,1732363797218,-500.0,0.00019726,2]
[343108551,1732363797246,-500.0,0.00019726,2]
[343108552,1732363797273,-474.73613568,0.00019726,2]
[343108553,1732363797301,-500.0,0.00019726,2]
[343108554,1732363797328,-500.0,0.00019726,2]
[343108555,1732363797355,-1075.91,0.00019726,2]
[343108556,1732363797383,-500.0,0.00019726,2]
[343108557,1732363797535,-500.0,0.00019726,2]
[343108558,1732363797567,-500.0,0.00019726,2]
[343108559,1732363797594,-535.9,0.00019726,2]
[343108560,1732363797622,-500.0,0.00019726,2]
[343108561,1732363797650,-817.22,0.00019726,2]
[343108562,1732363797678,-1151.72,0.00019726,2]
[343108563,1732363797706,-500.0,0.00019726,2]
[343108564,1732363797735,-978.05,0.00019726,2]
[343108565,1732363797763,-500.0,0.00019726,2]
[343108566,1732363797792,-500.0,0.00019726,2]
[343108567,1732363797821,-6942.67,0.00019726,2]
[343108568,1732363797851,-500.0,0.00019726,2]
[343108569,1732363797877,-953.96,0.00019726,2]
[343108570,1732363797905,-500.0,0.00019726,2]
[343108571,1732363797932,-500.21091956,0.00019726,2]
[343108572,1732363797959,-500.0,0.00019726,2]
[343108573,1732363797987,-500.0,0.00019726,2]
[343108574,1732363798017,-500.0,0.00019726,2]
[343108575,1732363798046,-500.0,0.00019726,2]
[343108576,1732363798078,-52463.48,0.00019726,2]
[343108577,1732363798104,-500.0,0.00019726,2]
[343108578,1732363798134,-500.0,0.00019726,2]
[343108579,1732363798162,-500.0,0.00019726,2]
[343108580,1732363798191,-500.0,0.00019726,2]
[343108581,1732363798218,-500.0,0.00019726,2]
[343108582,1732363798246,-772.5,0.00019726,2]
[343108583,1732363798275,-500.0,0.00019726,2]
[343108584,1732363798303,-524.68260077,0.00019726,2]
[343108585,1732363798335,-331.7808213,0.00019726,2]
[343108586,1732363798361,-500.0,0.00019726,2]
[343108587,1732363798390,-500.0,0.00019726,2]
[343108588,1732363798415,-1910.73,0.00019726,2]
[343108589,1732363798441,-500.0,0.00019726,2]
[343108590,1732363798467,-1061.88,0.00019726,2]
[343108591,1732363798493,-500.0,0.00019726,2]
[343108592,1732363798522,-4477.26,0.00019726,2]
[343108593,1732363798551,-909.52,0.00019726,2]
[343108594,1732363798582,-1682.46,0.00019726,2]
[343108595,1732363798613,-820.13,0.00019726,2]
[343108596,1732363798643,-1013.63,0.00019726,2]
[343108597,1732363798670,-500.0,0.00019726,2]
[343108598,1732363798697,-500.0,0.00019726,2]
[343108599,1732363798724,-2690.84,0.00019726,2]
[343108600,1732363798751,-500.0,0.00019726,2]
[343108601,1732363798778,-2805.8,0.00019726,2]
[343108602,1732363798804,-500.0,0.00019726,2]
[343108603,1732363798831,-693.81,0.00019726,2]
[343108604,1732363798858,-500.0,0.00019726,2]
[343108605,1732363798885,-1206.73,0.00019726,2]
[343108606,1732363798911,-500.0,0.00019726,2]
[343108607,1732363798939,-718.66,0.00019726,2]
[343108608,1732363798965,-500.0,0.00019726,2]
[343108609,1732363798992,-6072.35,0.00019726,2]
[343108610,1732363799021,-3779.33,0.00019726,2]
[343108611,1732363799049,-549.73027591,0.00019726,2]
[343108612,1732363799077,-525.91254826,0.00019726,2]
[343108613,1732363799104,-528.58355241,0.00019726,2]
[343108614,1732363799131,-500.0,0.00019726,2]
[343108615,1732363799158,-500.0,0.00019726,2]
[343108616,1732363799186,-500.0,0.00019726,2]
[343108617,1732363799214,-500.0,0.00019726,2]
[343108618,1732363799242,-500.0,0.00019726,2]
[343108619,1732363799270,-500.0,0.00019726,2]
[343108620,1732363799309,-500.0,0.00019726,2]
[343108621,1732363799343,-250.0,0.00019726,2]
[343108622,1732363799382,-1172.77,0.00019726,2]
[343108623,1732363799419,-577.81982722,0.00019726,2]
[343108624,1732363799455,-500.0,0.00019726,2]
[343108625,1732363799489,-500.0,0.00019726,2]
[343108626,1732363799528,-232.60044591,0.00019726,2]
[343108627,1732363799563,-1095.66,0.00019726,2]
[343108628,1732363799599,-502.5861771,0.00019726,2]
[343108629,1732363799640,-500.0,0.00019726,2]
[343108630,1732363799678,-500.0,0.00019726,2]
[343108631,1732363799710,-500.0,0.00019726,2]
[343108632,1732363799749,-500.0,0.00019726,2]
[343108633,1732363799783,-500.0,0.00019726,2]
[343108634,1732363799818,-1092.97,0.00019726,2]
[343108635,1732363799852,-752.35,0.00019726,2]
[343108636,1732363799885,-500.0,0.00019726,2]
[343108637,1732363799919,-362.46300921,0.00019726,2]
[343108638,1732363799954,-1905.13,0.00019726,2]
[343108639,1732363799987,-500.0,0.00019726,2]
[343108640,1732363800027,-500.0,0.00019726,2]
[343108641,1732363800063,-938.66,0.00019726,2]
[343108642,1732363800103,-500.0,0.00019726,2]
[343108643,1732363800137,-500.0,0.00019726,2]
[343108644,1732363800170,-540.8323659,0.00019726,2]
[343108645,1732363800204,-542.55739553,0.00019726,2]
[343108646,1732363800238,-500.0,0.00019726,2]
[343108647,1732363800274,-500.0,0.00019726,2]
[343108648,1732363800309,-500.0,0.00019726,2]
[343108649,1732363800343,-732.4,0.00019726,2]
[343108650,1732363800377,-500.0,0.00019726,2]
[343108651,1732363800409,-586.46479216,0.00019726,2]
[343108652,1732363800441,-500.0,0.00019726,2]
[343108653,1732363800475,-500.0,0.00019726,2]
[343108654,1732363800508,-500.0,0.00019726,2]
[343108655,1732363800543,-500.0,0.00019726,2]
[343108656,1732363800575,-500.0,0.00019726,2]
[343108657,1732363800609,-1065.5,0.00019726,2]
[343108658,1732363800641,-500.0,0.00019726,2]
[343108659,1732363800675,-500.0,0.00019726,2]
[343108660,1732363800711,-500.0,0.00019726,2]
[343108661,1732363800749,-500.0,0.00019726,2]
[343108662,1732363800783,-2062.38,0.00019726,2]
[343108663,1732363800818,-156.7384722,0.00019726,2]
[343108664,1732363800850,-329.60783317,0.00019726,2]
[343108665,1732363800882,-500.0,0.00019726,2]
[343108666,1732363800914,-500.0,0.00019726,2]
[343108667,1732363800945,-500.0,0.00019726,2]
[343108668,1732363800978,-22802.25,0.00019726,2]
[343108669,1732363801015,-842.43,0.00019726,2]
[343108670,1732363801051,-500.0,0.00019726,2]
[343108671,1732363801083,-500.0,0.00019726,2]
[343108672,1732363801116,-500.0,0.00019726,2]
[343108673,1732363801149,-2917.26,0.00019726,2]
[343108674,1732363801184,-12661.24,0.00019726,2]
[343108675,1732363801218,-500.0,0.00019726,2]
[343108676,1732363801253,-500.0,0.00019726,2]
[343108677,1732363801290,-500.0,0.00019726,2]
[343108678,1732363801326,-1609.55,0.00019726,2]
[343108679,1732363801359,-1335.26,0.00019726,2]
[343108680,1732363801393,-500.0,0.00019726,2]
[343108681,1732363801427,-6871.74,0.00019726,2]
[343108682,1732363801460,-1889.34,0.00019726,2]
[343108683,1732363801497,-1142.95,0.00019726,2]
[343108684,1732363801536,-500.0,0.00019773,2]
[343108685,1732363801571,-201.2,0.00019831,2]
[343108686,1732363801829,-160.0,0.00019893,3]
[343108687,1732363801862,-20783.81900333,0.0001999,2]
[343108688,1732363801890,-500.0,0.0002,2]
[343108689,1732363801917,-150.48038427,0.0002,2]
[343108690,1732363801945,-500.0,0.0002,2]
[343108691,1732363801972,-500.0,0.0002,2]
[343108692,1732363802003,-500.0,0.0002,2]
[343108693,1732363802039,-4007.0,0.0002,2]
[343108694,1732363802065,-186.0,0.0002,2]
[343108695,1732363802094,-261.91318746,0.0002,2]
[343108696,1732363802122,-500.0,0.0002,2]
[343108697,1732363802151,-500.0,0.0002,2]
[343108698,1732363802180,-500.0,0.0002,2]
[343108699,1732363802208,-500.0,0.0002,2]
[343108700,1732363802237,-500.0,0.0002,2]
[343108701,1732363802265,-500.0,0.0002,2]
[343108702,1732363802295,-603.70304213,0.0002,2]
[343108703,1732363802323,-500.0,0.0002,2]
[343108704,1732363802354,-500.0,0.0002,2]
[343108705,1732363802382,-500.0,0.0002,2]
[343108706,1732363802410,-500.0,0.0002,2]
[343108707,1732363802438,-500.0,0.0002,2]
[343108708,1732363802467,-500.0,0.0002,2]
[343108709,1732363802495,-500.0,0.0002,2]
[343108710,1732363802527,-500.0,0.0002,2]
[343108711,1732363802557,-804.92,0.0002,2]
[343108712,1732363802586,-500.0,0.0002,2]
[343108713,1732363802615,-500.0,0.0002,2]
[343108714,1732363802642,-500.0,0.0002,2]
[343108715,1732363802669,-571.55695865,0.0002,2]
[343108716,1732363802697,-500.0,0.0002,2]
[343108717,1732363802725,-500.0,0.0002,2]
[343108718,1732363802756,-500.0,0.0002,2]
[343108719,1732363802788,-500.0,0.0002,2]
[343108720,1732363802816,-500.0,0.0002,2]
[343108721,1732363802842,-1424.86,0.0002,2]
[343108722,1732363802869,-500.0,0.0002,2]
[343108723,1732363802900,-1952.93,0.0002,2]
[343108724,1732363802929,-549.4,0.0002,2]
[343108725,1732363802957,-647.17076408,0.0002,2]
[343108726,1732363802986,-529.77179912,0.0002,2]
[343108727,1732363803017,-500.0,0.0002,2]
[343108728,1732363803061,-500.0,0.0002,2]
[343108729,1732363803107,-500.0,0.0002,2]
[343108730,1732363803140,-500.0,0.0002,2]
[343108731,1732363803174,-500.0,0.0002,2]
[343108732,1732363803206,-500.0,0.0002,2]
[343108733,1732363803237,-500.0,0.0002,2]
[343108734,1732363803269,-1177.73,0.0002,2]
[343108735,1732363803304,-535.43296784,0.0002,2]
[343108736,1732363803338,-553.72760791,0.0002,2]
[343108737,1732363803370,-501.95594739,0.0002,2]
[343108738,1732363803400,-500.0,0.0002,2]
[343108739,1732363803431,-500.0,0.0002,2]
[343108740,1732363803462,-1178.56,0.0002,2]
[343108741,1732363803495,-467.27264411,0.0002,2]
[343108742,1732363803528,-211.1971987,0.0002,2]
[343108743,1732363803560,-500.0,0.0002,2]
[343108744,1732363803589,-500.0,0.0002,2]
[343108745,1732363803619,-500.0,0.0002,2]
[343108746,1732363803649,-500.0,0.0002,2]
[343108747,1732363803679,-503.94901075,0.0002,2]
[343108748,1732363803709,-500.0,0.0002,2]